bitfinex-derivatives/quotes_SOLF0:USTF0_20251020
["timestamp","ask_amount","ask_price","bid_price","bid_amount"]
[1760985506545,2.83,187.89,187.82,2.81]
[1760985506743,2.83,187.89,187.83,4.08488002]
[1760985506945,4.79,187.86,187.82,2.81]
[1760985507138,2.83,187.89,187.84,2.81]
[1760985507338,2.67,187.89,187.8,2.74]
[1760985507554,2.67,187.89,187.81,9.06025409]
[1760985507746,4.7897,187.87,187.83,2.74]
[1760985508439,4.7893,187.89,187.85,2.74]
[1760985509743,4.7893,187.89,187.87,2.74]
[1760985512647,44.36,187.91,187.87,2.74]
[1760985512846,2.67,187.96,187.87,2.74]
[1760985513047,2.67,187.96,187.89,2.74]
[1760985513252,0.92628329,187.97,187.91,2.74]
[1760985513454,44.34,187.99,187.91,2.74]
[1760985513653,44.34,187.99,187.93,2.74]
[1760985514048,7.4569,187.98,187.93,2.74]
[1760985514440,44.34,187.99,187.93,2.74]
[1760985515152,49.1267,187.99,187.93,2.74]
[1760985515354,44.34,187.99,187.95,2.74]
[1760985515553,3.59598752,188.02,187.95,2.74]
[1760985515756,2.67,188.01,187.95,2.74]
[1760985515955,2.67,188.01,187.92,2.0612837]
[1760985515956,2.67,188.0,187.92,2.74]
[1760985516454,4.7867,187.99,187.92,4.7883]
[1760985516658,2.0612837,188.01,187.93,2.74]
[1760985516954,2.0612837,188.01,187.93,4.788]
[1760985517155,2.0612837,188.01,187.94,2.74]
[1760985517349,0.92598752,188.02,187.94,2.74]
[1760985517652,4.7861,188.01,187.94,2.74]
[1760985517856,2.98727122,188.02,187.94,2.74]
[1760985518249,4.7863,188.0,187.94,2.74]
[1760985518456,2.0612837,187.98,187.94,2.74]
[1760985518651,4.7312837,187.98,187.94,2.74]
[1760985519358,9.5182837,187.98,187.94,2.74]
[1760985519556,2.67,187.98,187.94,2.74]
[1760985519758,2.0612837,188.01,187.94,2.74]
[1760985520255,7.4568,187.99,187.94,2.74]
[1760985520452,2.67,187.98,187.94,2.74]
[1760985520752,4.7868,187.99,187.94,2.74]
[1760985521450,7.4568,187.99,187.94,2.74]
[1760985522753,2.67,187.98,187.94,2.74]
[1760985523755,7.4569,187.98,187.94,2.74]
[1760985526162,2.67,187.97,187.94,2.74]
[1760985526854,7.4572,187.97,187.94,2.74]
[1760985527661,4.7872,187.97,187.94,2.74]
[1760985532767,7.4572,187.97,187.94,2.74]
[1760985533058,7.4572,187.97,187.91,7.5285]
[1760985533361,2.67,187.96,187.93,2.74]
[1760985533764,4.7872,187.97,187.93,2.74]
[1760985534273,4.7872,187.97,187.94,4.07573766]
[1760985534469,4.7872,187.97,187.93,2.74]
[1760985534966,7.4572,187.97,187.93,2.74]
[1760985536263,7.4572,187.97,187.94,6.81690328]
[1760985536463,7.4572,187.97,187.94,2.74]
[1760985536968,7.4572,187.97,187.95,4.07793988]
[1760985537273,7.4572,187.97,187.94,2.74]
[1760985537575,7.4572,187.97,187.95,4.07913513]
[1760985537766,7.4572,187.97,187.94,2.74]
[1760985538069,2.98727122,188.02,187.95,11.96086724]
[1760985538070,2.86,187.98,187.95,11.96086724]
[1760985538267,2.86,187.98,187.91,4.9912837]
[1760985538572,2.86,187.98,187.94,2.93]
[1760985538873,2.86,187.98,187.95,4.08038816]
[1760985539066,2.86,187.98,187.94,2.93]
[1760985539268,7.647,187.98,187.94,2.93]
[1760985540174,7.647,187.98,187.95,4.08029157]
[1760985540373,7.647,187.98,187.94,2.93]
[1760985540569,7.647,187.98,187.95,4.08086958]
[1760985540775,7.647,187.98,187.94,2.93]
[1760985541071,2.86,187.97,187.95,4.08108469]
[1760985541273,7.6472,187.97,187.91,2.0612837]
[1760985541475,2.86,187.96,187.92,11.96883719]
[1760985541663,4.7872,187.97,187.93,11.96883719]
[1760985541867,4.7865,188.0,187.95,2.93]
[1760985542067,2.86,187.99,187.96,4.08224679]
[1760985542268,2.86,187.99,187.92,9.94306457]
[1760985542469,2.86,187.99,187.93,9.03815835]
[1760985542677,2.86,187.99,187.92,4.9912837]
[1760985542678,2.86,187.99,187.94,9.03815835]
[1760985542869,2.86,187.99,187.95,4.08178966]
[1760985543169,2.86,187.99,187.92,4.9912837]
[1760985543370,2.86,187.99,187.93,9.03967091]
[1760985543570,2.86,187.99,187.94,11.96967091]
[1760985543869,2.86,187.99,187.95,4.08230776]
[1760985544069,2.86,187.98,187.94,2.93]
[1760985544270,2.86,187.98,187.95,4.08271285]
[1760985544474,2.86,187.98,187.94,2.93]
[1760985544675,2.86,187.98,187.95,4.08361957]
[1760985544876,2.86,187.98,187.94,2.93]
[1760985545080,2.86,187.98,187.95,7.01591826]
[1760985545277,2.86,187.98,187.95,2.93]
[1760985547773,2.86,187.98,187.92,4.9912837]
[1760985547975,2.86,187.98,187.93,11.98172954]
[1760985548178,2.86,187.97,187.94,9.05172954]
[1760985548380,2.86,187.97,187.95,4.08820786]
[1760985548578,2.86,187.97,187.93,2.93]
[1760985548874,2.86,187.97,187.94,7.02048895]
[1760985549082,2.86,187.97,187.95,4.09048895]
[1760985549379,2.86,187.97,187.94,2.93]
[1760985549573,2.86,187.97,187.95,4.09247898]
[1760985549767,2.86,187.97,187.94,2.93]
[1760985549967,2.86,187.97,187.95,4.0944181]
[1760985550267,2.86,187.97,187.96,4.09857078]
[1760985552375,4.787,187.98,187.96,4.09857078]
[1760985552582,2.86,187.97,187.92,7.01306457]
[1760985552773,2.86,187.95,187.93,12.01406523]
[1760985552976,2.86,187.95,187.94,4.10289417]
[1760985553276,2.86,187.95,187.87,4.95178087]
[1760985553482,2.86,187.92,187.88,9.08557401]
[1760985553686,2.86,187.92,187.89,9.08557401]
[1760985553879,9.7097837,187.91,187.9,9.08557401]
[1760985554075,9.7097837,187.91,187.9,4.0972972]
[1760985556478,9.7097837,187.91,187.9,9.72e-05]
[1760985556682,2.74,187.86,187.84,4.95178087]
[1760985556882,2.74,187.86,187.85,4.99596274]
[1760985560304,7.53,187.86,187.82,2.91]
[1760985560497,7.53,187.86,187.83,4.98886058]
[1760985560697,7.53,187.86,187.84,4.98886058]
[1760985560899,7.53,187.86,187.82,2.91]
[1760985561101,2.74,187.85,187.83,4.99025863]
[1760985561295,2.74,187.85,187.84,4.99025863]
[1760985561603,2.74,187.85,187.82,2.91]
[1760985561898,2.74,187.85,187.83,4.98793565]
[1760985562097,2.74,187.85,187.82,2.91]
[1760985562486,2.74,187.85,187.79,7.86178087]
[1760985562694,2.74,187.85,187.8,4.98657651]
[1760985562893,2.74,187.85,187.81,4.98657651]
[1760985563197,2.74,187.85,187.79,2.91]
[1760985563399,2.74,187.85,187.8,4.98655732]
[1760985563594,2.74,187.85,187.81,4.98655732]
[1760985563901,2.74,187.85,187.79,2.91]
[1760985564095,2.74,187.83,187.8,4.9844919]
[1760985564294,2.74,187.83,187.81,4.9844919]
[1760985564601,2.74,187.83,187.8,2.91]
[1760985564800,2.74,187.83,187.81,4.98236649]
[1760985564999,2.74,187.83,187.8,2.91]
[1760985565187,2.74,187.83,187.81,4.98263011]
[1760985565391,2.74,187.83,187.8,2.91]
[1760985565594,2.74,187.83,187.81,4.98078349]
[1760985565798,2.74,187.83,187.8,2.91]
[1760985566401,2.74,187.83,187.81,4.97872919]
[1760985566596,2.74,187.83,187.8,2.91]
[1760985566792,2.74,187.83,187.81,4.97831446]
[1760985566993,2.74,187.83,187.8,2.91]
[1760985567192,2.74,187.83,187.81,4.9783113]
[1760985567494,2.74,187.83,187.8,2.91]
[1760985567793,2.74,187.83,187.81,4.9771506]
[1760985567994,2.74,187.83,187.8,2.91]
[1760985568194,2.74,187.83,187.81,4.97713512]
[1760985568395,2.74,187.83,187.8,2.91]
[1760985568595,2.74,187.83,187.81,9.04018986]
[1760985568796,2.74,187.83,187.82,4.06379692]
[1760985568998,4.7905,187.84,187.82,4.06379692]
[1760985569199,4.7905,187.84,187.8,2.91]
[1760985569499,15.36,187.9,187.76,4.7923]
[1760985569500,2.9,187.82,187.81,4.0637027]
[1760985569805,2.9,187.82,187.76,11.04262229]
[1760985570010,4.7913,187.81,187.77,11.91224658]
[1760985570304,2.9,187.8,187.78,9.04224658]
[1760985570502,2.9,187.8,187.79,9.04224658]
[1760985570806,2.9,187.8,187.76,6.09084142]
[1760985570998,2.9,187.79,187.77,4.06550486]
[1760985571197,2.9,187.79,187.76,6.09084142]
[1760985571397,2.9,187.79,187.77,4.06412433]
[1760985571702,2.9,187.79,187.76,6.09084142]
[1760985571896,2.9,187.79,187.77,4.06391773]
[1760985572095,2.9,187.79,187.76,6.09084142]
[1760985572305,2.9,187.79,187.77,4.06327881]
[1760985572503,2.9,187.79,187.76,6.09084142]
[1760985572699,2.9,187.79,187.77,4.06248329]
[1760985572899,2.9,187.79,187.76,6.09084142]
[1760985573100,2.9,187.79,187.77,4.06248329]
[1760985573298,2.9,187.79,187.76,6.09084142]
[1760985574212,7.6918,187.79,187.76,6.09084142]
[1760985575506,7.6922,187.78,187.73,6.09084142]
[1760985575811,7.6922,187.78,187.75,2.87]
[1760985576412,2.9,187.77,187.73,6.09084142]
[1760985576708,2.9,187.84,187.75,2.87]
[1760985577497,2.9,187.83,187.72,2.87]
[1760985578211,2.9,187.75,187.72,2.87]
[1760985578802,7.6928,187.75,187.72,2.87]
[1760985579003,2.9,187.74,187.71,6.09084142]
[1760985579304,2.9,187.74,187.68,6.09084142]
[1760985579506,7.6932,187.74,187.68,6.09084142]
[1760985580201,7.6932,187.74,187.69,2.87]
[1760985581009,4.7932,187.74,187.69,2.87]
[1760985581209,2.9,187.73,187.69,2.87]
[1760985581809,7.6934,187.73,187.69,2.87]
[1760985585416,7.6936,187.72,187.69,6.09084142]
[1760985585806,2.9,187.71,187.69,6.09084142]
[1760985586809,7.6936,187.72,187.69,6.09084142]
[1760985587100,3.22084142,187.82,187.67,6.09084142]
[1760985587101,2.9,187.7,187.67,6.09084142]
[1760985587815,7.6944,187.69,187.67,3.22084142]
[1760985588016,7.6944,187.69,187.67,6.09084142]
[1760985589016,7.6944,187.69,187.67,3.22084142]
[1760985589203,2.9,187.77,187.64,2.87]
[1760985589408,2.9,187.72,187.66,2.87]
[1760985589813,4.7944,187.69,187.66,2.87]
[1760985591320,4.7939,187.71,187.66,2.87]
[1760985591517,2.9,187.75,187.69,2.87]
[1760985591720,2.9,187.75,187.72,2.87]
[1760985592017,2.9,187.75,187.71,3.22084142]
[1760985592211,2.9,187.75,187.71,6.09084142]
[1760985593014,4.7931,187.74,187.71,6.09084142]
[1760985594014,4.7931,187.74,187.71,2.87]
[1760985594520,7.6931,187.74,187.71,2.87]
[1760985595821,4.7932,187.73,187.71,2.87]
[1760985597719,7.4932,187.73,187.68,2.78]
[1760985597918,7.4932,187.73,187.69,11.8086716]
[1760985598228,7.4935,187.72,187.66,2.78]
[1760985598427,7.4935,187.72,187.68,2.78]
[1760985598617,7.4935,187.72,187.69,6.82292283]
[1760985598818,7.4935,187.72,187.69,2.78]
[1760985599623,4.7939,187.71,187.69,2.78]
[1760985601430,4.7933,187.73,187.69,2.78]
[1760985601623,7.4933,187.73,187.7,6.82534756]
[1760985601924,4.7933,187.73,187.71,2.78]
[1760985603219,4.7929,187.75,187.71,6.00084142]
[1760985603425,4.7929,187.75,187.72,2.78]
[1760985603623,2.7,187.79,187.72,2.78]
[1760985604127,2.7,187.79,187.74,2.78]
[1760985604429,2.7,187.79,187.76,2.78]
[1760985605028,7.4921,187.78,187.75,2.78]
[1760985605528,2.7,187.77,187.74,3.22084142]
[1760985605826,7.4923,187.77,187.72,2.78]
[1760985606021,2.7,187.76,187.71,3.22084142]
[1760985606229,2.7,187.76,187.72,4.04817025]
[1760985606424,2.7,187.73,187.69,2.78]
[1760985606622,2.7,187.73,187.7,4.04868524]
[1760985606823,2.7,187.73,187.69,2.78]
[1760985607022,2.7,187.73,187.7,4.04910627]
[1760985607218,2.7,187.73,187.69,2.78]
[1760985607423,2.7,187.73,187.7,4.04999926]
[1760985607622,4.7933,187.73,187.7,2.78]
[1760985608426,2.7,187.76,187.67,4.7946]
[1760985608427,4.7928,187.75,187.72,2.78]
[1760985609032,4.7931,187.74,187.72,2.78]
[1760985610639,7.4931,187.74,187.69,2.78]
[1760985610933,7.4931,187.74,187.71,2.78]
[1760985611135,7.4931,187.74,187.68,6.00084142]
[1760985611341,7.4933,187.73,187.7,2.78]
[1760985611527,7.4933,187.73,187.71,4.04750817]
[1760985611728,7.4933,187.73,187.7,2.78]
[1760985612023,7.4933,187.73,187.71,4.04886742]
[1760985612225,7.4935,187.72,187.66,2.78]
[1760985612424,7.4935,187.72,187.68,2.78]
[1760985612626,7.4935,187.72,187.69,11.83085442]
[1760985612826,7.4935,187.72,187.69,2.78]
[1760985613435,7.4935,187.72,187.7,4.05331087]
[1760985613637,2.7,187.7,187.66,2.78]
[1760985613829,2.7,187.7,187.61,4.94651709]
[1760985614029,2.7,187.7,187.62,9.0598901]
[1760985614230,2.7,187.7,187.63,9.0598901]
[1760985614433,2.7,187.7,187.64,4.05547988]
[1760985614640,2.86,187.63,187.6,2.78]
[1760985614938,2.86,187.63,187.61,4.05859627]
[1760985615140,7.6559,187.63,187.62,4.05838526]
[1760985615841,7.6554,187.65,187.62,6.98838526]
[1760985616033,2.86,187.69,187.63,4.05781612]
[1760985616334,2.86,187.74,187.65,2.93]
[1760985616535,2.86,187.74,187.66,4.05781612]
[1760985616729,2.86,187.74,187.67,6.98781612]
[1760985616930,2.86,187.74,187.68,4.05781612]
[1760985617124,2.86,187.74,187.67,2.93]
[1760985617333,2.86,187.74,187.68,4.05516354]
[1760985617637,2.86,187.74,187.67,2.93]
[1760985617834,4.7933,187.73,187.68,4.05519358]
[1760985618137,7.6533,187.73,187.69,2.93]
[1760985618838,4.7933,187.73,187.69,2.93]
[1760985619135,28.12,187.79,187.71,2.93]
[1760985619335,2.86,187.74,187.68,2.93]
[1760985619532,7.6533,187.73,187.69,4.05827655]
[1760985619727,7.6533,187.73,187.69,2.93]
[1760985620233,7.6533,187.73,187.7,4.0599341]
[1760985620432,7.6533,187.73,187.69,2.93]
[1760985620639,7.6533,187.73,187.7,4.05360022]
[1760985620937,7.6533,187.73,187.7,2.06362836]
[1760985621127,7.6533,187.73,187.7,4.99362836]
[1760985621128,4.7933,187.73,187.7,4.99362836]
[1760985621334,7.6533,187.73,187.7,2.06362836]
[1760985621530,2.86,187.71,187.68,2.06362836]
[1760985621737,2.86,187.71,187.69,4.05546406]
[1760985622035,2.86,187.71,187.68,2.06362836]
[1760985622337,2.86,187.71,187.69,4.05547677]
[1760985622537,2.86,187.71,187.68,2.06362836]
[1760985622839,2.86,187.71,187.69,4.05678365]
[1760985623038,7.6538,187.71,187.68,2.06362836]
[1760985623238,7.6538,187.71,187.69,4.05678507]
[1760985623434,4.7938,187.71,187.68,2.06362836]
[1760985623637,4.7938,187.71,187.69,4.0584555]
[1760985623846,7.6538,187.71,187.68,2.06362836]
[1760985624040,7.6538,187.71,187.69,4.05846315]
[1760985624342,7.6538,187.71,187.68,2.06362836]
[1760985624533,7.6538,187.71,187.69,4.05861148]
[1760985624838,7.6538,187.71,187.68,2.06362836]
[1760985625027,7.6538,187.71,187.69,4.05883101]
[1760985625230,7.6538,187.71,187.68,2.06362836]
[1760985625430,7.6538,187.71,187.69,4.05831546]
[1760985625629,7.6538,187.71,187.68,2.06362836]
[1760985625836,7.6538,187.71,187.69,4.05832063]
[1760985626141,2.86,187.7,187.68,2.06362836]
[1760985626340,2.86,187.7,187.69,4.05825283]
[1760985626539,2.86,187.69,187.65,2.06362836]
[1760985626742,2.86,187.69,187.66,4.05946612]
[1760985627040,2.86,187.69,187.67,4.05946612]
[1760985627240,2.86,187.69,187.68,4.05946612]
[1760985628038,7.6543,187.69,187.68,4.05946612]
[1760985628239,2.86,187.69,187.63,9.95187791]
[1760985628434,2.86,187.69,187.64,9.12863801]
[1760985628635,2.86,187.69,187.65,9.12863801]
[1760985628836,2.86,187.69,187.66,9.12863801]
[1760985629034,2.86,187.69,187.67,9.12863801]
[1760985629239,2.86,187.69,187.63,9.95187791]
[1760985629434,2.86,187.69,187.64,12.02640861]
[1760985629637,2.86,187.7,187.65,4.05930033]
[1760985629945,2.86,187.7,187.61,7.02187791]
[1760985630246,2.86,187.7,187.62,9.12972829]
[1760985630450,2.86,187.7,187.63,4.06080992]
[1760985630650,2.86,187.7,187.64,4.06080992]
[1760985630847,2.86,187.7,187.65,4.06080992]
[1760985631146,2.86,187.65,187.61,4.96362836]
[1760985631351,2.86,187.65,187.62,4.06045429]
[1760985631545,2.86,187.65,187.6,4.95824955]
[1760985631546,7.6556,187.64,187.63,4.06045429]
[1760985631937,4.7956,187.64,187.63,4.06045429]
[1760985632848,7.6556,187.64,187.63,4.06045429]
[1760985634951,4.7956,187.64,187.63,4.06045429]
[1760985635248,7.6556,187.64,187.63,4.06045429]
[1760985636254,7.6556,187.64,187.61,2.9]
[1760985636548,7.6556,187.64,187.62,4.05716257]
[1760985636851,4.7958,187.63,187.61,2.9]
[1760985637053,4.7958,187.63,187.62,4.0571642]
[1760985637944,7.6553,187.65,187.62,6.9571642]
[1760985638140,7.6553,187.65,187.63,4.0571642]
[1760985638339,7.6553,187.65,187.62,2.9]
[1760985638652,7.6553,187.65,187.63,4.05598763]
[1760985638857,7.6553,187.65,187.62,2.9]
[1760985639055,7.6553,187.65,187.63,4.05598438]
[1760985639248,4.7956,187.64,187.62,2.9]
[1760985639448,7.6556,187.64,187.63,4.05569351]
[1760985639757,7.6556,187.64,187.6,4.96362836]
[1760985639951,7.6556,187.64,187.61,4.05619579]
[1760985640141,7.6556,187.64,187.62,4.05619579]
[1760985640340,7.6556,187.64,187.61,2.9]
[1760985640548,7.6556,187.64,187.62,4.05575596]
[1760985640753,7.6556,187.64,187.61,2.9]
[1760985640954,7.6556,187.64,187.62,4.05529311]
[1760985641155,7.6556,187.64,187.61,2.9]
[1760985641452,4.7956,187.64,187.63,2.9]
[1760985641847,4.7956,187.64,187.61,2.9]
[1760985642047,7.6556,187.64,187.62,4.05504385]
[1760985642243,7.6556,187.64,187.61,2.9]
[1760985642447,7.6556,187.64,187.62,4.05507941]
[1760985642650,7.6556,187.64,187.61,2.9]
[1760985642851,7.6556,187.64,187.62,4.05507941]
[1760985643051,4.7959,187.63,187.61,2.9]
[1760985643253,4.7959,187.63,187.62,4.05508103]
[1760985643758,7.6559,187.63,187.6,2.06362836]
[1760985643945,7.6559,187.63,187.61,4.05509875]
[1760985644149,7.6559,187.63,187.6,4.96362836]
[1760985644349,7.6559,187.63,187.61,4.05483103]
[1760985644649,7.6559,187.63,187.6,4.96362836]
[1760985644845,7.6559,187.63,187.61,4.05483103]
[1760985645051,7.6559,187.63,187.6,4.96362836]
[1760985645250,7.6559,187.63,187.61,4.0541921]
[1760985645452,7.6559,187.63,187.6,4.96362836]
[1760985645654,7.6559,187.63,187.61,4.05424009]
[1760985645956,7.6559,187.63,187.61,2.9]
[1760985646253,4.7961,187.62,187.6,4.96362836]
[1760985646463,4.7961,187.62,187.61,4.05428922]
[1760985648259,4.7961,187.62,187.61,6.95428922]
[1760985649161,4.7961,187.62,187.61,4.05428922]
[1760985650660,7.6561,187.62,187.61,4.05428922]
[1760985653666,2.86,187.59,187.56,4.96362836]
[1760985653866,2.86,187.59,187.57,4.06177257]
[1760985654062,4.7968,187.6,187.58,4.06177257]
[1760985654265,4.7968,187.6,187.59,4.06177257]
[1760985655062,7.6568,187.6,187.59,4.06177257]
[1760985658075,4.7968,187.6,187.59,4.06177257]
[1760985658274,7.6368,187.6,187.59,4.06177257]
[1760985660682,4.7973,187.57,187.56,2.06362836]
[1760985660976,4.7973,187.57,187.56,6.12655831]
[1760985661376,4.7973,187.57,187.56,8.84655831]
[1760985661883,4.7973,187.57,187.56,6.12655831]
[1760985662273,4.7973,187.57,187.56,4.06292995]
[1760985662473,7.6373,187.57,187.56,4.06292995]
[1760985664981,4.7976,187.56,187.54,4.78362836]
[1760985665181,4.7976,187.56,187.55,4.062765]
[1760985665380,4.7976,187.56,187.55,6.782765]
[1760985666178,4.7976,187.56,187.55,4.062765]
[1760985666680,7.6376,187.56,187.55,4.062765]
[1760985667079,7.6381,187.54,187.5,7.67824955]
[1760985667379,7.6381,187.54,187.48,6.54904751]
[1760985667380,7.6381,187.54,187.51,8.8468577]
[1760985667579,7.6381,187.54,187.52,4.06322934]
[1760985667779,7.6381,187.54,187.53,4.06322934]
[1760985668380,4.7986,187.52,187.51,2.06362836]
[1760985668582,4.7986,187.52,187.51,4.06261408]
[1760985670782,7.6386,187.52,187.51,4.06261408]
[1760985671083,4.7986,187.52,187.51,4.06261408]
[1760985675784,4.7986,187.52,187.5,2.06362836]
[1760985675982,4.7986,187.52,187.5,4.88362836]
[1760985676879,7.5086,187.52,187.5,4.88362836]
[1760985677877,7.5086,187.52,187.51,4.05705902]
[1760985678284,4.7986,187.52,187.5,4.88362836]
[1760985680584,4.7982,187.54,187.52,2.82]
[1760985680789,4.7982,187.54,187.53,2.06362836]
[1760985681380,4.7976,187.56,187.53,4.88362836]
[1760985681588,2.71,187.63,187.56,2.82]
[1760985681791,2.71,187.63,187.56,2.06362836]
[1760985682090,7.5077,187.56,187.54,4.88362836]
[1760985682292,4.7977,187.56,187.54,4.88362836]
[1760985682480,2.71,187.59,187.55,2.82]
[1760985682685,2.71,187.59,187.55,3.22906085]
[1760985682885,2.71,187.67,187.56,4.05374536]
[1760985683084,2.71,187.67,187.58,3.22906085]
[1760985683282,4.7961,187.62,187.59,2.82]
[1760985683592,2.71,187.64,187.59,2.82]
[1760985683793,7.5064,187.61,187.58,6.04906085]
[1760985683995,2.71,187.61,187.58,2.82]
[1760985684193,2.71,187.61,187.52,3.22906085]
[1760985684391,4.7976,187.56,187.53,6.87449473]
[1760985684588,4.7976,187.56,187.53,2.82]
[1760985685088,4.7979,187.55,187.53,2.82]
[1760985685289,2.71,187.54,187.52,3.22906085]
[1760985685683,4.7982,187.54,187.52,6.04906085]
[1760985685995,4.7982,187.54,187.53,2.82]
[1760985686390,4.7982,187.54,187.52,3.22906085]
[1760985686593,4.7982,187.54,187.52,6.04906085]
[1760985687290,2.75,187.6,187.53,4.05644052]
[1760985687597,2.75,187.6,187.52,5.99906085]
[1760985687796,2.75,187.6,187.53,4.05662831]
[1760985687998,2.75,187.6,187.52,5.99906085]
[1760985688196,2.75,187.6,187.53,4.05662831]
[1760985688391,2.75,187.6,187.52,5.99906085]
[1760985688590,2.75,187.6,187.53,4.05723107]
[1760985688791,2.75,187.6,187.52,5.99906085]
[1760985688993,4.7979,187.55,187.53,6.82723107]
[1760985689198,4.7979,187.55,187.53,2.77]
[1760985689702,2.75,187.61,187.55,2.77]
[1760985690008,2.75,187.61,187.55,5.99906085]
[1760985691004,4.7972,187.58,187.55,3.22906085]
[1760985691203,4.7972,187.58,187.56,2.77]
[1760985691706,7.5465,187.61,187.56,2.77]
[1760985691907,2.75,187.63,187.56,2.77]
[1760985692103,2.75,187.63,187.52,4.95824955]
[1760985692104,2.75,187.63,187.52,2.77]
[1760985692405,2.75,187.63,187.53,10.05828067]
[1760985692605,2.75,187.63,187.54,4.05921982]
[1760985692797,4.7972,187.58,187.55,11.94894125]
[1760985692990,4.7972,187.58,187.56,9.17931499]
[1760985693195,4.7972,187.58,187.57,2.77]
[1760985693494,4.7972,187.58,187.53,3.22906085]
[1760985693696,4.7972,187.58,187.55,2.77]
[1760985693895,4.7972,187.58,187.56,11.95145312]
[1760985694098,4.7972,187.58,187.56,2.77]
[1760985694305,4.7967,187.6,187.56,3.22906085]
[1760985694493,4.7967,187.6,187.58,2.77]
[1760985695596,4.7961,187.62,187.58,2.77]
[1760985695900,17.56,187.69,187.6,2.77]
[1760985695901,2.75,187.65,187.6,2.77]
[1760985696398,4.7956,187.64,187.6,2.77]
[1760985696799,7.5456,187.64,187.6,2.77]
[1760985697395,4.7952,187.66,187.62,3.22906085]
[1760985697608,2.75,187.65,187.62,3.22906085]
[1760985699005,7.5454,187.65,187.62,3.22906085]
[1760985699506,7.5454,187.65,187.6,2.77]
[1760985699706,7.5454,187.65,187.61,11.95487871]
[1760985699908,7.5454,187.65,187.61,2.77]
[1760985700407,7.5454,187.65,187.62,9.18444533]
[1760985700602,7.5454,187.65,187.61,2.77]
[1760985700907,7.5454,187.65,187.62,9.18369053]
[1760985701099,7.5454,187.65,187.61,2.77]
[1760985701301,7.5454,187.65,187.62,9.18369053]
[1760985701497,7.5456,187.64,187.61,2.77]
[1760985701700,2.75,187.63,187.57,5.99906085]
[1760985701900,2.75,187.63,187.59,2.77]
[1760985702106,2.75,187.63,187.6,9.18316996]
[1760985702107,4.7962,187.62,187.6,9.18316996]
[1760985702405,4.7962,187.62,187.59,2.77]
[1760985702604,4.7962,187.62,187.61,2.77]
[1760985702910,4.7962,187.62,187.58,2.77]
[1760985703109,4.7962,187.62,187.59,11.95302897]
[1760985703309,4.7962,187.62,187.6,11.95302897]
[1760985703510,4.7962,187.62,187.6,2.77]
[1760985707614,7.5462,187.62,187.6,2.77]
[1760985710514,4.7964,187.61,187.59,2.77]
[1760985711513,7.5464,187.61,187.59,2.77]
[1760985713011,2.75,187.68,187.54,5.99906085]
[1760985713203,2.75,187.66,187.55,11.94740141]
[1760985713407,2.75,187.66,187.56,9.17740141]
[1760985713605,7.5471,187.59,187.57,9.17740141]
[1760985713807,2.75,187.58,187.55,2.77]
[1760985714004,2.75,187.58,187.52,2.77]
[1760985714216,2.75,187.57,187.53,11.94824098]
[1760985714417,2.75,187.57,187.54,11.94824098]
[1760985714621,2.75,187.57,187.55,11.94824098]
[1760985714917,2.75,187.57,187.52,2.77]
[1760985715217,2.75,187.57,187.53,11.9491278]